bitfinex-derivatives/quotes_BTCF0:USTF0_20241125
["timestamp","ask_amount","ask_price","bid_price","bid_amount"]
[1732508317044,0.05117458,97847.0,97842.0,0.3608]
[1732508317358,0.051047,97845.0,97842.0,0.411848]
[1732508317556,0.00012858,97847.0,97845.0,0.055407]
[1732508317747,0.02044081,97855.0,97847.0,0.00423142]
[1732508318055,0.01120939,97855.0,97845.0,0.051047]
[1732508318555,0.051043,97854.0,97847.0,0.051046]
[1732508318750,0.00011976,97853.0,97847.0,0.051046]
[1732508318950,0.00011976,97853.0,97842.0,0.3608]
[1732508319146,0.00011976,97853.0,97852.0,0.051043]
[1732508319451,0.01120939,97855.0,97854.0,0.051042]
[1732508319654,0.10202152,97880.0,97869.0,0.051035]
[1732508319655,0.07012152,97880.0,97869.0,0.051035]
[1732508319863,0.00544057,97871.0,97869.0,0.051035]
[1732508320063,0.051028,97881.0,97871.0,0.05547243]
[1732508320353,0.35647746,97878.0,97866.0,8.741e-05]
[1732508320554,0.04671301,97872.0,97870.0,0.3608]
[1732508320945,0.04671301,97872.0,97866.0,8.741e-05]
[1732508321147,0.04671301,97872.0,97870.0,0.3608]
[1732508321347,0.051036,97867.0,97866.0,8.741e-05]
[1732508321549,0.209156,97867.0,97866.0,8.741e-05]
[1732508323356,0.209156,97867.0,97846.0,0.001533]
[1732508323357,0.46468,97867.0,97846.0,0.001533]
[1732508323654,0.05104,97858.0,97846.0,0.001533]
[1732508324046,0.08194,97858.0,97846.0,0.001533]
[1732508325061,0.11514,97858.0,97846.0,0.001533]
[1732508326863,0.16667112,97858.0,97846.0,0.001533]
[1732508328454,0.47323112,97858.0,97846.0,0.001533]
[1732508329262,0.16667112,97858.0,97846.0,0.001533]
[1732508329453,0.13347112,97858.0,97846.0,0.001533]
[1732508329664,0.12847112,97858.0,97846.0,0.001533]
[1732508330162,0.12847112,97858.0,97846.0,0.052579]
[1732508331069,0.12847112,97858.0,97846.0,0.001533]
[1732508332758,0.14889889,97858.0,97846.0,0.001533]
[1732508333270,0.051046,97847.0,97846.0,0.001533]
[1732508333562,0.215166,97847.0,97846.0,0.001533]
[1732508333766,0.575966,97847.0,97846.0,0.001533]
[1732508335066,0.215166,97847.0,97846.0,0.001533]
[1732508335268,0.575966,97847.0,97846.0,0.001533]
[1732508335673,0.52492,97847.0,97836.0,0.0001268]
[1732508335966,0.051048,97843.0,97836.0,0.0001268]
[1732508336167,0.07012152,97846.0,97836.0,0.0001268]
[1732508336465,0.051051,97837.0,97836.0,0.0001268]
[1732508338757,0.046051,97837.0,97836.0,0.0001268]
[1732508339660,0.16412,97837.0,97836.0,0.0001268]
[1732508339972,0.16212,97837.0,97836.0,0.0001268]
[1732508340477,0.16112,97837.0,97836.0,0.0001268]
[1732508340971,0.51992,97837.0,97836.0,0.0001268]
[1732508341174,0.61116763,97837.0,97836.0,0.0001268]
[1732508341469,0.51992,97837.0,97836.0,0.0001268]
[1732508344069,0.5709947,97837.0,97836.0,0.0001268]
[1732508345467,0.89806911,97837.0,97836.0,1e-08]
[1732508345669,1.0499826,97837.0,97836.0,1e-08]
[1732508345876,2.44773228,97837.0,97836.0,1e-08]
[1732508346074,2.74773228,97837.0,97836.0,1e-08]
[1732508346576,0.051066,97809.0,97797.0,0.051072]
[1732508346761,0.16412,97808.0,97797.0,0.051072]
[1732508347473,0.16422041,97808.0,97797.0,0.051072]
[1732508347868,0.16422041,97808.0,97800.0,0.05107]
[1732508348067,0.16422041,97808.0,97794.0,0.051074]
[1732508348265,0.16422041,97808.0,97795.0,0.051073]
[1732508348760,0.16422041,97808.0,97797.0,0.051072]
[1732508350073,0.16422041,97808.0,97793.0,0.0321]
[1732508350271,0.051076,97790.0,97789.0,0.00010778]
[1732508351276,0.051088,97768.0,97766.0,0.36233408]
[1732508351964,0.16416,97769.0,97767.0,0.051088]
[1732508352167,0.07012152,97776.0,97767.0,0.051088]
[1732508352375,0.16416,97769.0,97767.0,0.051088]
[1732508352779,0.16316,97769.0,97767.0,0.051088]
[1732508352977,0.16316,97769.0,97766.0,0.36233408]
[1732508353871,0.16223,97769.0,97766.0,0.36233408]
[1732508354068,0.1642,97770.0,97766.0,0.36233408]
[1732508354282,0.1642,97776.0,97772.0,0.051085]
[1732508354479,0.051083,97777.0,97773.0,0.051084]
[1732508354872,0.050173,97777.0,97773.0,0.051084]
[1732508356186,0.161,97779.0,97773.0,0.051084]
[1732508356488,0.161,97779.0,97766.0,0.36233408]
[1732508356686,0.051086,97771.0,97766.0,0.36233408]
[1732508356981,0.051086,97771.0,97768.0,0.051087]
[1732508357373,0.050106,97771.0,97766.0,0.36233408]
[1732508357574,0.161,97772.0,97766.0,0.36233408]
[1732508357775,0.02043733,97774.0,97766.0,0.36233408]
[1732508357776,0.02043733,97774.0,97773.0,0.051085]
[1732508358375,0.01947733,97774.0,97773.0,0.051085]
[1732508358779,0.161,97787.0,97781.0,0.05108]
[1732508358982,0.42944,97797.0,97782.0,0.0664]
[1732508359187,0.161,97791.0,97789.0,0.051076]
[1732508359673,0.051072,97798.0,97787.0,0.3608]
[1732508359873,0.042122,97798.0,97796.0,0.3608]
[1732508360286,0.037122,97798.0,97797.0,0.051072]
[1732508360683,0.033122,97798.0,97797.0,0.051072]
[1732508361184,0.161,97805.0,97796.0,0.3608]
[1732508361392,0.16,97805.0,97804.0,0.051068]
[1732508361578,0.161,97815.0,97804.0,0.3608]
[1732508361784,0.161,97815.0,97807.0,0.051067]
[1732508362183,0.161,97815.0,97808.0,0.00489959]
[1732508362378,0.161,97815.0,97799.0,0.3608]
[1732508362588,0.051067,97808.0,97804.0,0.051068]
[1732508362978,0.051067,97807.0,97804.0,0.051068]
[1732508363189,0.07012152,97810.0,97799.0,0.3608]
[1732508363190,0.00011253,97806.0,97799.0,0.3608]
[1732508363388,0.051069,97804.0,97799.0,0.3608]
[1732508363693,0.00011253,97806.0,97805.0,0.051068]
[1732508364191,0.18144387,97809.0,97806.0,0.00489747]
[1732508364391,0.1765464,97809.0,97806.0,0.051067]
[1732508364586,0.1765464,97809.0,97808.0,0.3608]
[1732508364988,0.0155464,97809.0,97808.0,0.3608]
[1732508365192,0.00012209,97809.0,97808.0,0.3608]
[1732508365595,0.00012209,97809.0,97808.0,0.411866]
[1732508365787,0.161,97815.0,97809.0,0.00487791]
[1732508365987,0.161,97815.0,97814.0,0.051063]
[1732508365988,0.156,97815.0,97814.0,0.051063]
[1732508366197,0.14612209,97815.0,97814.0,0.051063]
[1732508366396,0.14612209,97815.0,97809.0,0.051066]
[1732508366689,0.19718509,97815.0,97813.0,0.051064]
[1732508366898,8.245e-05,97814.0,97813.0,0.051064]
[1732508367800,0.161,97818.0,97814.0,0.00491755]
[1732508368186,0.161,97818.0,97808.0,0.3608]
[1732508368187,0.05124608,97825.0,97824.0,0.051058]
[1732508368390,0.161,97832.0,97825.0,0.00990755]
[1732508368591,0.161,97832.0,97816.0,0.3608]
[1732508368592,0.161,97835.0,97826.0,0.0641]
[1732508368785,0.480446,97848.0,97828.0,0.051056]
[1732508368986,0.051051,97838.0,97835.0,0.051052]
[1732508369187,0.05112406,97837.0,97827.0,0.03093261]
[1732508369385,0.05112406,97837.0,97830.0,0.051055]
[1732508369593,0.05112406,97837.0,97831.0,0.051054]
[1732508369796,0.05112406,97837.0,97827.0,0.03093261]
[1732508369997,0.05112406,97837.0,97834.0,0.051052]
[1732508371285,0.051053,97834.0,97827.0,0.05118861]
[1732508371586,0.051055,97830.0,97827.0,0.05118861]
[1732508372883,0.212015,97830.0,97827.0,0.05118861]
[1732508373285,0.051056,97828.0,97827.0,0.00013261]
[1732508374300,0.051056,97828.0,97804.0,0.3608]
[1732508374301,0.30668,97828.0,97809.0,0.051066]
[1732508374609,0.3608,97818.0,97809.0,0.051066]
[1732508374801,0.212022,97817.0,97809.0,0.051066]
[1732508374989,0.051063,97814.0,97809.0,0.051066]
[1732508375185,0.16096,97817.0,97806.0,0.00013032]
[1732508375788,0.051065,97810.0,97806.0,0.00013032]
[1732508376689,0.051067,97807.0,97806.0,0.00013032]
[1732508381602,0.411867,97807.0,97806.0,0.00013032]
[1732508382115,0.443467,97807.0,97806.0,0.00013032]
[1732508383509,0.504767,97807.0,97806.0,0.00013032]
[1732508383895,0.49437011,97807.0,97806.0,0.00013032]
[1732508385704,0.44330311,97807.0,97806.0,0.00013032]
[1732508385902,0.21382311,97807.0,97806.0,0.00013032]
[1732508386707,0.16292,97807.0,97806.0,0.00013032]
[1732508386908,0.15792,97807.0,97806.0,0.00013032]
[1732508387213,0.16292,97807.0,97806.0,0.00013032]
[1732508388507,0.02043583,97808.0,97807.0,0.051067]
[1732508388705,0.07072153,97822.0,97806.0,0.00013032]
[1732508388706,0.09138869,97819.0,97818.0,0.051061]
[1732508388905,0.15792,97819.0,97818.0,0.051061]
[1732508389208,0.15492,97819.0,97818.0,0.051061]
[1732508389603,0.1645741,97819.0,97818.0,0.051061]
[1732508390503,0.15492,97819.0,97818.0,0.051061]
[1732508390999,0.05106,97820.0,97818.0,0.051061]
[1732508391206,0.16292,97819.0,97818.0,0.051061]
[1732508391802,0.16092,97819.0,97818.0,0.051061]
[1732508392212,0.16092,97819.0,97816.0,0.1822308]
[1732508392213,0.051061,97818.0,97816.0,0.1822308]
[1732508392604,0.16092,97819.0,97818.0,0.051061]
[1732508393314,0.211981,97819.0,97818.0,0.051061]
[1732508393615,0.051062,97818.0,97816.0,0.1822308]
[1732508393908,0.051062,97818.0,97811.0,0.2429744]
[1732508393909,0.16292,97817.0,97811.0,0.1822308]
[1732508394108,0.051064,97814.0,97811.0,0.1822308]
[1732508394310,0.16292,97817.0,97811.0,0.1822308]
[1732508394510,0.051064,97813.0,97810.0,0.1822308]
[1732508394709,0.051064,97813.0,97811.0,0.1822308]
[1732508395104,0.051064,97813.0,97812.0,0.1822308]
[1732508395307,0.051064,97813.0,97810.0,0.051065]
[1732508395507,0.051064,97813.0,97812.0,0.18282399]
[1732508395706,0.051064,97813.0,97806.0,0.00013032]
[1732508395707,0.16292,97817.0,97807.0,0.2429744]
[1732508395905,0.3608,97815.0,97813.0,0.18282012]
[1732508396105,0.0308,97814.0,97813.0,0.18282012]
[1732508396309,0.051065,97811.0,97809.0,0.18282012]
[1732508396503,0.0308,97814.0,97806.0,0.00013032]
[1732508396504,0.16292,97810.0,97806.0,0.00013032]
[1732508396810,0.051067,97808.0,97806.0,0.00013032]
[1732508398707,0.00967271,97807.0,97806.0,0.00013032]
[1732508399113,0.0096728,97807.0,97806.0,0.00013032]
[1732508399413,0.0046728,97807.0,97806.0,0.00013032]
[1732508400514,0.12652439,97807.0,97806.0,0.00013032]
[1732508400712,0.1013779,97808.0,97806.0,0.00013032]
[1732508401618,0.22322949,97808.0,97806.0,0.00013032]
[1732508402015,0.34420249,97808.0,97806.0,0.00013032]
[1732508402214,0.17204,97808.0,97806.0,0.00013032]
[1732508402416,0.17204,97808.0,97806.0,0.05119732]
[1732508402717,0.2637786,97808.0,97806.0,0.2340533]
[1732508402910,0.2637786,97808.0,97807.0,0.18285598]
[1732508403116,0.2637786,97808.0,97806.0,0.2340533]
[1732508403420,0.25877838,97808.0,97807.0,0.18285598]
[1732508403719,0.02043781,97814.0,97806.0,0.05119732]
[1732508404020,0.09176361,97823.0,97813.0,0.3608]
[1732508404207,0.09176361,97827.0,97823.0,0.005]
[1732508404411,0.09176361,97830.0,97829.0,0.051055]
[1732508404632,0.10720142,97830.0,97829.0,0.051055]
[1732508404816,0.02043781,97830.0,97829.0,0.29507257]
[1732508405021,0.02043781,97830.0,97829.0,0.051055]
[1732508405414,0.01543781,97830.0,97829.0,0.051055]
[1732508405815,0.01043781,97830.0,97829.0,0.051055]
[1732508406319,0.01043781,97830.0,97829.0,0.29476995]
[1732508406515,0.01043781,97830.0,97829.0,0.051055]
[1732508406721,0.01043781,97830.0,97829.0,0.29475966]
[1732508406913,0.01043781,97830.0,97829.0,0.051055]
[1732508407221,7.206e-05,97837.0,97836.0,0.051052]
[1732508407418,7.206e-05,97837.0,97836.0,0.411852]
[1732508407720,7.206e-05,97837.0,97836.0,0.3608]
[1732508407921,0.051052,97836.0,97834.0,0.18271534]
[1732508408114,0.051053,97834.0,97830.0,0.18271534]
[1732508408315,0.051056,97829.0,97827.0,0.18271534]
[1732508408518,0.02050987,97837.0,97826.0,0.18275702]
[1732508408519,0.051056,97827.0,97826.0,0.18275702]
[1732508408719,0.051056,97827.0,97825.0,0.051057]
[1732508408924,0.15523139,97837.0,97815.0,0.3608]
[1732508408925,0.17204,97828.0,97826.0,0.18276086]
[1732508409226,0.17204,97830.0,97824.0,0.18275519]
[1732508409413,0.051057,97826.0,97824.0,0.18275519]
[1732508409609,0.051058,97825.0,97819.0,0.24362046]
[1732508409808,0.051058,97825.0,97824.0,0.18276461]
[1732508410013,0.051058,97825.0,97823.0,0.18276461]
[1732508410309,0.051059,97822.0,97821.0,0.18276461]
[1732508410515,0.05106,97822.0,97819.0,0.18281545]
[1732508410723,0.01622999,97821.0,97818.0,0.18281545]
[1732508411023,0.01622999,97820.0,97817.0,0.051062]
[1732508411324,0.01622999,97819.0,97818.0,0.051061]
[1732508411519,0.02637445,97819.0,97818.0,0.051061]
[1732508411727,0.02637445,97819.0,97816.0,0.18281545]
[1732508411728,0.051061,97818.0,97815.0,0.411862]
[1732508411930,0.01014446,97817.0,97815.0,0.411862]
[1732508412113,0.01014446,97816.0,97815.0,0.411862]
[1732508412314,0.09055196,97827.0,97815.0,0.3608]
[1732508412315,0.07148744,97827.0,97815.0,0.3608]
[1732508412515,0.0050132,97826.0,97821.0,0.18281827]
[1732508412718,0.02043044,97827.0,97826.0,0.061067]
[1732508413022,0.02043044,97827.0,97826.0,0.051057]
[1732508413226,0.00542045,97827.0,97826.0,0.051057]
[1732508413433,0.07228571,97837.0,97836.0,0.051052]
[1732508413728,7.206e-05,97837.0,97836.0,0.411852]
[1732508413917,0.172,97854.0,97837.0,0.00492794]
[1732508414227,0.00060001,97857.0,97836.0,0.718492]
[1732508414228,0.10125209,97857.0,97854.0,0.005]
[1732508414526,0.051038,97863.0,97853.0,0.54348588]
[1732508414829,7.505e-05,97862.0,97854.0,0.0306]
[1732508415025,7.505e-05,97862.0,97860.0,0.051039]
[1732508415224,7.505e-05,97862.0,97854.0,0.0306]
[1732508415225,0.051039,97860.0,97854.0,0.0306]
[1732508415421,0.051039,97860.0,97855.0,0.051042]
[1732508415626,0.051039,97860.0,97854.0,0.0306]
[1732508415924,0.051039,97860.0,97857.0,0.05104]
[1732508416129,0.051039,97860.0,97854.0,0.0306]
[1732508416425,0.051039,97860.0,97858.0,0.05104]
[1732508416924,0.02043385,97861.0,97860.0,0.051039]
[1732508417433,0.02043385,97861.0,97854.0,0.081642]
[1732508417732,0.051041,97857.0,97854.0,0.081642]
[1732508418025,0.051041,97857.0,97855.0,0.051042]
[1732508418323,0.02043385,97861.0,97854.0,0.0306]
[1732508418524,0.051042,97855.0,97854.0,0.0306]
[1732508418823,0.02043385,97861.0,97854.0,0.0306]
[1732508419029,0.02043385,97861.0,97859.0,0.05104]
[1732508420720,0.01743385,97861.0,97859.0,0.05104]
[1732508421318,7.505e-05,97862.0,97861.0,0.053039]
[1732508421523,7.505e-05,97862.0,97861.0,0.411839]
[1732508421723,0.07146385,97877.0,97869.0,0.051034]
[1732508421922,0.051034,97871.0,97862.0,0.114638]
[1732508422127,0.051034,97871.0,97862.0,0.0636]
[1732508422321,0.051034,97871.0,97865.0,0.051036]
[1732508422522,0.051035,97869.0,97865.0,0.051036]
[1732508422727,0.05011537,97869.0,97865.0,0.051036]
[1732508422926,0.05011537,97869.0,97867.0,0.051035]
[1732508423126,0.172,97875.0,97862.0,0.0636]
[1732508423324,0.051036,97867.0,97862.0,0.114638]
[1732508423524,0.051036,97867.0,97863.0,0.051037]
[1732508423726,0.223032,97875.0,97867.0,0.00388941]
[1732508423932,0.21914259,97875.0,97866.0,0.051036]
[1732508424132,0.21914259,97875.0,97862.0,0.0636]
[1732508424335,0.16811059,97875.0,97862.0,0.0636]
[1732508424529,0.051032,97874.0,97868.0,0.051035]
[1732508424722,0.00012442,97873.0,97868.0,0.051035]
[1732508425424,0.00012442,97873.0,97869.0,0.3608]
[1732508426135,0.051033,97872.0,97869.0,0.3608]
[1732508426334,0.051034,97871.0,97869.0,0.3608]
[1732508426839,0.00012442,97873.0,97872.0,0.051033]
[1732508428129,0.00012442,97873.0,97869.0,0.3608]
[1732508428529,0.051033,97872.0,97869.0,0.3608]
[1732508428733,0.051034,97871.0,97869.0,0.3608]
[1732508428930,0.00012442,97873.0,97869.0,0.3608]
[1732508429329,0.051034,97870.0,97866.0,0.051036]
[1732508429637,0.051034,97870.0,97862.0,0.0636]
[1732508429833,0.00012442,97873.0,97870.0,0.051034]
[1732508430028,0.00012442,97873.0,97871.0,0.051033]
[1732508430237,0.3608,97875.0,97874.0,0.051032]
[1732508430436,0.35592442,97875.0,97874.0,0.051032]
[1732508431329,9.246e-05,97875.0,97874.0,0.051032]
[1732508432141,0.051034,97870.0,97868.0,0.051035]
[1732508432340,9.246e-05,97875.0,97860.0,0.3608]
[1732508432640,0.051035,97869.0,97860.0,0.3608]
[1732508433227,0.051035,97869.0,97867.0,0.051035]
[1732508433531,0.05112446,97875.0,97860.0,0.3608]
[1732508433926,0.05112446,97875.0,97861.0,0.051038]
[1732508434127,0.09055537,97877.0,97869.0,0.051034]
[1732508434338,0.050134,97871.0,97869.0,0.051034]
[1732508435241,8.927e-05,97870.0,97869.0,0.051034]
[1732508436436,0.050134,97871.0,97870.0,0.00201073]
[1732508436639,0.04812327,97871.0,97869.0,0.051034]
[1732508436837,0.051034,97870.0,97863.0,0.051037]
[1732508437142,0.45135537,97877.0,97860.0,0.3608]
[1732508437347,0.45135537,97877.0,97861.0,0.051039]
[1732508437348,0.051037,97866.0,97861.0,0.051039]
[1732508437737,0.051037,97866.0,97860.0,0.3608]
[1732508438045,0.051037,97866.0,97864.0,0.051037]
[1732508438241,0.051037,97865.0,97860.0,0.3608]
[1732508438444,0.07012152,97870.0,97860.0,0.3608]
[1732508438845,0.051037,97865.0,97860.0,0.3608]
[1732508439040,0.050037,97865.0,97860.0,0.3608]
[1732508439446,0.050037,97865.0,97860.0,0.411839]
[1732508439649,0.050037,97865.0,97862.0,0.051038]
[1732508440350,0.17072,97869.0,97860.0,0.3608]
[1732508440646,0.051047,97845.0,97840.0,0.051049]
[1732508440855,0.051048,97843.0,97840.0,0.051049]
[1732508441053,0.17072,97848.0,97840.0,0.051049]
[1732508441249,0.17072,97848.0,97838.0,0.3608]
[1732508441449,0.05105,97840.0,97838.0,0.3608]
[1732508443252,0.083846,97847.0,97838.0,0.3608]
[1732508443439,0.0328,97847.0,97843.0,0.24421658]
[1732508443644,0.0328,97847.0,97844.0,0.24421045]
[1732508443840,0.0328,97847.0,97845.0,0.24421045]
[1732508443841,0.051047,97846.0,97845.0,0.24421045]
[1732508444156,0.051047,97846.0,97842.0,0.051048]
[1732508444157,0.051047,97846.0,97844.0,0.24421045]
[1732508444854,0.051048,97844.0,97843.0,0.24415084]
[1732508445050,0.051048,97844.0,97842.0,0.24415084]
[1732508445249,0.051049,97842.0,97840.0,0.24415084]
[1732508445550,0.05105,97840.0,97838.0,0.24415084]
[1732508445950,0.051051,97839.0,97837.0,0.24415084]
[1732508446157,0.05105,97840.0,97837.0,0.24415084]
[1732508446352,0.051052,97837.0,97835.0,0.24415084]
[1732508446544,0.051053,97833.0,97832.0,0.24415084]
[1732508446748,0.17072,97836.0,97825.0,0.24415084]
[1732508447054,0.051058,97825.0,97823.0,0.18310464]
[1732508447244,0.17072,97824.0,97823.0,0.18310464]
[1732508447448,0.17072,97824.0,97822.0,0.051059]
[1732508447752,0.17072,97824.0,97822.0,0.23416364]
[1732508448054,0.17072,97824.0,97823.0,0.18310464]
[1732508448455,0.17072,97824.0,97822.0,0.051059]
[1732508448849,0.00979702,97823.0,97822.0,0.051059]
[1732508449453,0.00888702,97823.0,97822.0,0.051059]
[1732508449750,0.17072,97824.0,97822.0,0.051059]
[1732508449952,0.17072,97824.0,97822.0,0.23416364]
[1732508450546,0.17072,97824.0,97822.0,0.051059]
[1732508450745,0.3608,97833.0,97821.0,0.18310464]
[1732508450946,0.051055,97830.0,97825.0,0.18310464]
[1732508451154,0.17076,97829.0,97826.0,0.18310464]
[1732508451455,0.17076,97829.0,97824.0,0.3608]
[1732508451456,0.17076,97829.0,97824.0,0.54390464]
[1732508451651,0.17076,97829.0,97825.0,0.18310464]
[1732508451847,0.221816,97829.0,97828.0,0.051056]
[1732508452558,0.051058,97825.0,97824.0,0.3608]
[1732508453759,0.19119279,97829.0,97828.0,0.051056]
[1732508453953,0.19119279,97829.0,97824.0,0.3608]
[1732508454148,0.051057,97826.0,97824.0,0.3608]
[1732508454952,0.051057,97826.0,97824.0,0.411858]
[1732508455367,0.02043279,97829.0,97827.0,0.051056]
[1732508455666,0.16416,97828.0,97827.0,0.051056]
[1732508455861,0.15916,97828.0,97827.0,0.051056]
[1732508457060,0.02043279,97829.0,97827.0,0.051056]
[1732508457667,0.02043279,97829.0,97827.0,0.23416064]
[1732508457668,0.01543279,97829.0,97827.0,0.23416064]
[1732508457856,0.01543279,97829.0,97827.0,0.051056]
[1732508458863,0.01543279,97829.0,97824.0,0.3608]
[1732508458864,0.051058,97825.0,97824.0,0.051058]
[1732508459566,0.01543279,97829.0,97814.0,0.54390464]
[1732508459862,0.051057,97827.0,97815.0,0.18310464]
[1732508460065,0.051057,97827.0,97825.0,0.051057]
[1732508460965,0.01543279,97829.0,97822.0,0.3608]
[1732508461161,0.01543279,97829.0,97828.0,0.051056]
[1732508461865,0.01443279,97829.0,97828.0,0.051056]
[1732508462066,0.02433271,97829.0,97828.0,0.051056]
[1732508462271,0.02033271,97829.0,97822.0,0.3608]
[1732508462463,0.051059,97823.0,97822.0,0.051059]
[1732508462776,0.051059,97823.0,97822.0,0.411859]
[1732508462777,0.06095892,97823.0,97822.0,0.411859]
[1732508462959,0.01043279,97829.0,97822.0,0.411859]
[1732508463166,0.051058,97825.0,97822.0,0.3608]
[1732508463359,0.01005671,97824.0,97822.0,0.3608]
[1732508463665,0.01005671,97823.0,97822.0,0.3608]
[1732508464170,0.02699543,97823.0,97822.0,0.3608]
[1732508464682,0.051064,97813.0,97811.0,0.3608]
[1732508464889,0.051064,97813.0,97806.0,0.00013032]
[1732508464890,0.051066,97809.0,97806.0,0.00013032]
[1732508465183,0.02699543,97808.0,97806.0,0.00013032]
[1732508465369,0.02699543,97807.0,97806.0,0.05119732]
[1732508466075,0.03338218,97807.0,97806.0,0.05119732]
[1732508466477,0.03515967,97807.0,97806.0,0.05119732]
[1732508466988,0.03515974,97807.0,97806.0,0.05119732]
[1732508467483,0.02877299,97807.0,97806.0,0.05119732]
[1732508468186,0.03515974,97807.0,97806.0,0.05119732]
[1732508468683,0.04342284,97807.0,97806.0,0.00013032]
[1732508469073,0.04342284,97807.0,97806.0,0.18310029]
[1732508469383,0.04342284,97807.0,97806.0,0.00013032]
[1732508469682,0.05718287,97807.0,97806.0,0.00013032]
[1732508470181,0.3608,97830.0,97806.0,0.36093032]
[1732508470376,0.01376691,97821.0,97820.0,0.05106]
[1732508470575,0.0373423,97821.0,97820.0,0.02743832]
[1732508470882,0.16416,97843.0,97821.0,0.30668]
[1732508471076,0.16416,97843.0,97840.0,0.3608]
[1732508471272,0.15915,97843.0,97840.0,0.3608]
[1732508471479,1.50060001,97844.0,97840.0,0.3608]
[1732508471776,0.00010474,97843.0,97840.0,0.3608]
[1732508471976,0.00010474,97843.0,97841.0,0.26451576]
[1732508472180,0.16416,97854.0,97843.0,0.00488526]
[1732508472383,0.15927474,97854.0,97848.0,0.3608]
[1732508473088,7.915e-05,97853.0,97848.0,0.3608]
[1732508473475,7.915e-05,97853.0,97848.0,0.411845]
[1732508474372,0.02043279,97861.0,97853.0,0.00492085]
[1732508474572,0.02043279,97861.0,97860.0,0.411839]
[1732508474573,0.01551194,97861.0,97860.0,0.411839]
[1732508474777,0.01051194,97861.0,97860.0,0.411839]
[1732508475079,0.00544194,97861.0,97860.0,0.411839]
[1732508475277,0.00050194,97861.0,97860.0,0.411839]
[1732508475475,0.00059337,97861.0,97860.0,0.411839]
[1732508477984,0.00059337,97861.0,97851.0,0.18296676]
[1732508478193,0.051042,97855.0,97849.0,0.051045]
[1732508478378,0.03,97860.0,97848.0,0.3608]
[1732508478580,0.03,97860.0,97858.0,0.05104]
[1732508478787,0.00638323,97859.0,97858.0,0.41184]
[1732508478991,0.00638323,97859.0,97858.0,0.05104]
[1732508479386,0.05104,97858.0,97856.0,0.3608]
[1732508479585,0.02013382,97857.0,97856.0,0.33781981]
[1732508480591,0.02013382,97857.0,97856.0,0.30590187]
[1732508480789,0.0389267,97857.0,97856.0,0.30590187]
[1732508481992,0.051043,97853.0,97846.0,0.411846]
[1732508482180,0.04756639,97852.0,97846.0,0.411846]
[1732508482494,0.04756639,97851.0,97850.0,0.051044]
[1732508482789,0.05904415,97851.0,97850.0,0.051044]
[1732508483185,0.05840645,97851.0,97850.0,0.051044]
[1732508484593,0.05875368,97851.0,97850.0,0.051044]
[1732508486294,0.05875368,97851.0,97825.0,0.52676]
[1732508486488,0.05875368,97850.0,97849.0,0.051045]
[1732508486799,0.05875368,97850.0,97846.0,0.051046]
[1732508486994,0.05875368,97849.0,97846.0,0.051046]
[1732508487189,0.05875368,97848.0,97846.0,0.051046]
[1732508487495,0.05875368,97847.0,97846.0,0.051046]
[1732508487791,0.04500309,97847.0,97846.0,0.051046]
[1732508488388,0.051047,97846.0,97845.0,0.3608]
[1732508488590,0.04526082,97846.0,97835.0,0.18296676]
[1732508488896,0.051056,97828.0,97824.0,0.18296676]
[1732508489189,0.051056,97828.0,97825.0,0.051057]
[1732508489190,0.04526082,97827.0,97825.0,0.051057]
[1732508489398,0.07012152,97833.0,97825.0,0.051057]
[1732508489399,0.04526082,97826.0,97825.0,0.051057]
[1732508489786,0.051058,97824.0,97823.0,0.3608]
[1732508490183,0.09631882,97824.0,97823.0,0.3608]
[1732508490689,0.04526082,97824.0,97823.0,0.3608]
[1732508491799,0.04520984,97824.0,97823.0,0.3608]
[1732508492397,0.09626784,97824.0,97823.0,0.3608]
[1732508492583,0.09626784,97824.0,97812.0,0.3608]
[1732508492584,0.051063,97816.0,97812.0,0.3608]
[1732508492786,0.0388247,97815.0,97812.0,0.411864]
[1732508493094,0.07012152,97822.0,97811.0,0.3608]
[1732508493095,0.051064,97813.0,97811.0,0.3608]
[1732508493290,0.0388247,97812.0,97811.0,0.3608]
[1732508493601,0.04520984,97812.0,97811.0,0.3608]
[1732508494296,0.0388247,97812.0,97811.0,0.3608]
[1732508494499,0.04520984,97812.0,97811.0,0.3608]
[1732508494696,0.05279118,97812.0,97811.0,0.3608]
[1732508494999,0.05917632,97812.0,97811.0,0.3608]
[1732508495193,0.05917632,97812.0,97806.0,0.00013032]
[1732508495394,0.051067,97807.0,97806.0,0.00013032]
[1732508495597,0.051067,97807.0,97799.0,0.33793897]
[1732508495598,0.051069,97804.0,97799.0,0.33793897]
[1732508495790,0.06095994,97807.0,97799.0,0.33793897]
[1732508495791,0.06088282,97803.0,97799.0,0.33793897]
[1732508495993,0.06088282,97802.0,97799.0,0.33793897]
[1732508496187,7.712e-05,97807.0,97799.0,0.33793897]
[1732508496188,0.11195382,97801.0,97799.0,0.33793897]
[1732508496392,0.06088282,97800.0,97799.0,0.33793897]
[1732508497789,0.06088282,97800.0,97799.0,0.64469897]
[1732508497790,0.04676628,97800.0,97799.0,0.64469897]
[1732508497994,0.0471237,97800.0,97799.0,0.64469897]
[1732508498900,0.04767487,97800.0,97799.0,0.64469897]
[1732508499091,0.04767487,97800.0,97799.0,0.82724798]
[1732508499294,0.04767917,97800.0,97799.0,0.64469897]
[1732508499799,0.05596933,97800.0,97799.0,0.64469897]
[1732508500002,0.01288806,97806.0,97799.0,0.94469897]
[1732508500195,0.01474391,97821.0,97811.0,0.051065]
[1732508500403,0.16604,97841.0,97822.0,0.051059]
[1732508500592,0.00474644,97840.0,97836.0,0.3608]
[1732508500794,0.0308,97847.0,97836.0,0.3608]
[1732508500795,0.051048,97843.0,97836.0,0.3608]
[1732508501199,0.00010204,97842.0,97836.0,0.3608]
[1732508501403,0.16604,97846.0,97842.0,0.00489796]
[1732508501404,0.217087,97846.0,97842.0,0.00489796]
[1732508501708,0.051047,97846.0,97844.0,0.3608]
[1732508502506,9.727e-05,97845.0,97844.0,0.3608]
[1732508502802,9.727e-05,97845.0,97844.0,0.411848]
[1732508503012,0.3936,97859.0,97844.0,0.411848]
[1732508503013,0.3608,97859.0,97846.0,0.051047]